bitfinex-derivatives/quotes_ETHF0:USTF0_20260123
["timestamp","ask_amount","ask_price","bid_price","bid_amount"]
[1769198895400,0.00422422,2958.0,2957.0,0.1693]
[1769198895702,0.93636641,2957.9,2957.0,0.1693]
[1769198895902,0.00422422,2958.0,2957.0,0.1693]
[1769198896392,4.22e-06,2958.0,2957.4,0.16927]
[1769198897203,0.96654488,2958.2,2957.4,0.16927]
[1769198897905,0.96654488,2958.2,2957.5,0.16927]
[1769198898106,0.9701789,2958.2,2957.5,0.16927]
[1769198898902,0.00363402,2958.2,2957.6,0.16926]
[1769198904612,0.9701789,2958.2,2957.6,0.16926]
[1769198907314,0.9701789,2958.2,2957.0,0.16929]
[1769198907915,0.9701789,2958.2,2957.2,0.16929]
[1769198909230,0.9701789,2958.2,2956.6,5.27106739]
[1769198909730,0.9701789,2958.2,2957.4,0.16927]
[1769198913928,0.9171562,2957.5,2956.6,0.00506739]
[1769198914227,0.9171562,2957.3,2956.1,0.00389755]
[1769198914425,0.92222359,2957.3,2955.8,0.16936]
[1769198914625,1.27936561,2956.4,2954.6,0.16943]
[1769198914929,0.9171562,2956.2,2954.7,0.16943]
[1769198915223,0.9171562,2955.8,2954.1,0.16946]
[1769198915429,0.92107131,2955.8,2954.1,0.17191668]
[1769198915632,0.9171562,2955.6,2954.1,0.17191668]
[1769198915925,0.9171562,2955.3,2953.3,0.16951]
[1769198916115,0.9171562,2955.3,2952.8,3.89827646]
[1769198916318,0.9171562,2955.2,2952.8,0.87818044]
[1769198916928,0.9171562,2955.2,2952.8,0.8809066]
[1769198917123,0.00507606,2954.3,2952.8,0.8809066]
[1769198917323,0.00507606,2954.3,2953.5,0.16949]
[1769198918219,0.9171562,2955.7,2953.6,0.16949]
[1769198918426,0.9171562,2955.5,2953.6,0.00507606]
[1769198918621,0.9171562,2955.5,2953.7,0.87184324]
[1769198919225,0.9171562,2955.5,2954.0,0.16947]
[1769198919429,0.9171562,2955.5,2954.2,0.16945]
[1769198921727,0.9171562,2955.5,2954.4,0.16944]
[1769198923517,0.9171562,2955.5,2953.7,0.87134306]
[1769198923716,0.00391511,2955.8,2954.9,0.16942]
[1769198923926,0.00391511,2955.8,2954.9,0.17219933]
[1769198925923,0.00391511,2955.8,2955.0,0.16941]
[1769198926123,0.00391511,2955.8,2955.1,0.16941]
[1769198926324,0.9171562,2956.0,2955.2,0.1694]
[1769198926829,0.9171562,2956.8,2955.3,0.16939]
[1769198927028,0.9171562,2956.8,2955.6,0.16937]
[1769198927230,0.92148214,2956.8,2955.8,0.16937]
[1769198927733,0.00432594,2956.8,2955.8,0.16937]
[1769198927931,0.00432594,2956.8,2955.2,0.85386469]
[1769198928229,5.94e-06,2956.8,2956.4,0.16933]
[1769198928427,0.9171562,2957.7,2955.5,0.84326967]
[1769198928736,0.9171562,2957.7,2955.2,1.28444167]
[1769198928737,0.9171562,2957.7,2955.8,0.84326967]
[1769198928926,0.9171562,2957.7,2956.6,0.16932]
[1769198929231,0.9171562,2957.7,2956.8,0.16931]
[1769198929426,0.92088603,2957.7,2956.8,0.16931]
[1769198929729,0.92088603,2957.7,2957.0,0.00507606]
[1769198929925,0.92088603,2957.7,2957.0,0.00884012]
[1769198930329,0.92088603,2957.7,2956.8,0.16931]
[1769198930630,0.92088603,2957.7,2956.7,0.16931]
[1769198931430,0.92088603,2957.7,2956.7,0.17204586]
[1769198931827,0.00507606,2957.5,2956.7,0.17204586]
[1769198932030,0.00507606,2957.5,2956.8,0.16931]
[1769198933029,0.00372983,2957.7,2956.7,0.00273586]
[1769198933335,0.00372983,2957.7,2956.9,0.00507606]
[1769198933528,0.9171562,2959.5,2956.9,0.00507606]
[1769198933726,0.9171562,2959.2,2957.8,0.16925]
[1769198934624,0.92066897,2959.2,2957.8,0.16925]
[1769198934830,0.92066897,2959.2,2958.0,0.16923]
[1769198935024,0.92066897,2959.2,2956.9,0.82335986]
[1769198935221,0.00351277,2959.2,2957.9,0.8182838]
[1769198936730,0.00351277,2959.2,2958.6,0.1692]
[1769198937729,0.00351277,2959.2,2958.6,0.17427606]
[1769198938031,0.9171562,2959.7,2958.9,0.16919]
[1769198938929,0.91987364,2959.7,2958.9,0.17227283]
[1769198941433,0.00271744,2959.7,2958.9,0.00308283]
[1769198941734,0.9171562,2960.2,2958.9,0.00308283]
[1769198942334,0.9171562,2960.2,2959.5,0.16915]
[1769198942728,0.92035326,2960.2,2959.5,0.16915]
[1769198943437,0.92035326,2960.2,2959.6,0.16915]
[1769198944135,0.92035326,2960.2,2959.8,0.16913]
[1769198944329,0.92035326,2960.2,2959.1,0.16917]
[1769198944638,0.92035326,2960.2,2959.2,0.16917]
[1769198944940,0.92035326,2960.2,2959.3,0.16916]
[1769198945138,0.00319706,2960.2,2959.6,0.16914]
[1769198945640,0.00319706,2960.2,2958.9,0.00308283]
[1769198945844,0.00319706,2960.2,2959.7,0.16914]
[1769198947738,0.00319706,2960.2,2959.8,0.16914]
[1769198947938,0.85048874,2960.7,2959.8,0.16914]
[1769198948940,0.00250541,2960.7,2959.0,0.78872696]
[1769198949137,0.00250541,2960.7,2960.1,0.16912]
[1769198949734,0.00250541,2960.7,2959.0,0.78872696]
[1769198949735,0.77429632,2960.7,2959.7,0.16914]
[1769198950229,0.77429632,2960.7,2960.1,0.00506714]
[1769198950540,0.77429632,2960.7,2959.7,0.16914]
[1769198950740,0.77429632,2960.7,2959.9,0.16913]
[1769198950940,0.77936346,2960.7,2959.9,0.16913]
[1769198952637,0.77936346,2960.7,2959.4,0.16916]
[1769198953342,0.77936346,2960.7,2959.5,0.16915]
[1769198953941,0.77936346,2960.7,2959.0,0.16918]
[1769198954241,0.77936346,2960.7,2958.9,0.00308283]
[1769198954430,0.77936346,2960.7,2959.3,0.16916]
[1769198954842,0.77936346,2960.7,2959.4,0.16916]
[1769198955039,0.77179091,2960.5,2959.4,0.16916]
[1769198955344,0.77179091,2960.5,2959.5,0.16915]
[1769198958033,0.77179091,2960.5,2958.9,0.00308283]
[1769198958442,0.00757255,2960.7,2959.7,0.16914]
[1769198958640,0.77936346,2960.7,2959.0,0.78872696]
[1769198959144,0.77936346,2960.7,2959.6,0.16915]
[1769198962838,0.77936346,2960.7,2959.0,0.16918]
[1769198963048,0.77179091,2960.5,2959.1,0.16918]
[1769198963246,0.77179091,2960.3,2959.1,0.16918]
[1769198963446,0.77179091,2960.3,2959.2,0.16917]
[1769198963841,0.9411529,2960.2,2959.2,0.16917]
[1769198964042,0.77179091,2960.3,2959.2,0.16917]
[1769198964246,0.77179091,2960.1,2959.2,0.16917]
[1769198964439,0.77179091,2960.6,2959.3,0.16916]
[1769198964645,1.7139961,2960.5,2959.3,0.16916]
[1769198964846,0.94220519,2960.4,2959.3,0.16916]
[1769198965145,0.94220519,2960.3,2959.3,0.16916]
[1769198965344,0.94220519,2960.2,2959.3,0.16916]
[1769198965649,0.77179091,2960.5,2959.6,0.16915]
[1769198965951,0.94269365,2960.4,2959.6,0.16915]
[1769198966148,0.77179091,2960.5,2959.6,0.16915]
[1769198966149,0.94269365,2960.3,2959.6,0.16915]
[1769198966346,0.94269365,2960.2,2959.6,0.16915]
[1769198966546,0.77179091,2960.5,2959.6,0.16915]
[1769198966749,0.94298864,2960.4,2959.6,0.16915]
[1769198967054,0.94298864,2960.3,2959.6,0.16915]
[1769198967250,0.94298864,2960.2,2959.6,0.16915]
[1769198967450,0.77179091,2960.5,2959.6,0.16915]
[1769198967654,0.94331298,2960.4,2959.6,0.16915]
[1769198967852,0.94331298,2960.3,2959.6,0.16915]
[1769198968049,0.94331298,2960.2,2959.6,0.16915]
[1769198968250,0.77179091,2960.5,2959.6,0.16915]
[1769198968451,0.94327877,2960.4,2959.6,0.16915]
[1769198968649,0.94327877,2960.3,2959.6,0.16915]
[1769198968856,0.00757255,2960.7,2958.9,0.79180979]
[1769198969051,0.94323457,2960.6,2959.8,0.16913]
[1769198969251,0.94323457,2960.5,2959.8,0.16913]
[1769198969454,0.00757255,2960.7,2959.9,0.16913]
[1769198969657,0.00757255,2960.7,2958.9,1.28244844]
[1769198969658,0.00757255,2960.7,2960.3,0.16911]
[1769198969854,0.77179091,2961.4,2960.4,0.1691]
[1769198970055,0.94355292,2961.3,2960.5,0.16909]
[1769198970357,0.94355292,2961.2,2960.5,0.16909]
[1769198970550,0.94355292,2961.1,2960.0,0.00506714]
[1769198970756,0.94355292,2961.0,2960.0,0.00506714]
[1769198970952,0.94355292,2960.9,2960.0,0.00506714]
[1769198971156,0.77179091,2960.7,2960.0,0.00506714]
[1769198971351,0.94355292,2960.6,2960.0,0.00506714]
[1769198971557,0.77179091,2960.4,2958.9,3.38508283]
[1769198971759,0.00506714,2960.7,2958.9,3.38508283]
[1769198971760,0.77179091,2960.2,2959.4,0.16916]
[1769198971959,0.94263891,2960.1,2959.4,0.16916]
[1769198972160,0.94263891,2960.0,2958.9,0.00308283]
[1769198972458,0.94267069,2959.9,2959.1,0.16918]
[1769198972654,0.77179091,2960.2,2959.1,0.16918]
[1769198972858,0.94273981,2960.1,2959.1,0.16918]
[1769198973052,0.94273981,2960.0,2959.1,0.16918]
[1769198973252,0.94273981,2959.9,2959.1,0.16918]
[1769198973451,0.77179091,2960.2,2959.1,0.16918]
[1769198973755,0.94290171,2960.1,2959.1,0.16918]
[1769198973954,0.94290171,2960.0,2959.1,0.16918]
[1769198974156,0.94290171,2959.9,2959.2,0.16917]
[1769198974358,0.77179091,2960.2,2959.2,0.16917]
[1769198974555,0.94266563,2960.1,2959.2,0.16917]
[1769198974865,0.94266563,2960.0,2959.2,0.16917]
[1769198975056,0.94266563,2959.9,2959.2,0.16917]
[1769198975260,0.77179091,2960.2,2959.2,0.16917]
[1769198975457,0.94259167,2960.1,2959.2,0.16917]
[1769198975761,0.94259167,2960.0,2959.2,0.16917]
[1769198975960,0.94259167,2959.9,2959.2,0.16917]
[1769198976254,0.77179091,2960.2,2959.2,0.16917]
[1769198976462,0.94255614,2960.1,2959.2,0.16917]
[1769198976756,0.94255614,2960.0,2958.9,0.00308283]
[1769198976963,0.7652335,2960.6,2958.9,0.78704776]
[1769198977262,0.94244797,2960.5,2958.9,0.78704776]
[1769198977465,0.94244797,2960.4,2959.1,0.78396493]
[1769198977768,0.7652335,2960.6,2959.8,0.16914]
[1769198977953,0.94295664,2960.5,2959.8,0.16914]
[1769198978153,0.7652335,2960.6,2959.8,0.16914]
[1769198978365,0.94297408,2960.5,2959.8,0.16914]
[1769198978565,0.7652335,2960.6,2959.8,0.16914]
[1769198978862,0.94287377,2960.5,2959.8,0.16914]
[1769198979057,0.7652335,2960.6,2959.8,0.16914]
[1769198979260,0.94282835,2960.5,2959.8,0.16914]
[1769198979459,0.7652335,2960.6,2959.8,0.16914]
[1769198979661,0.94282915,2960.5,2959.8,0.16914]
[1769198979866,0.7652335,2960.6,2959.8,0.16914]
[1769198980069,0.94290276,2960.5,2959.8,0.16914]
[1769198980261,0.7652335,2960.6,2959.8,0.16914]
[1769198981971,0.00506714,2960.7,2959.8,0.16914]
[1769198982166,0.94317989,2960.6,2959.8,0.16914]
[1769198982368,0.00506714,2960.7,2959.8,0.16914]
[1769198982566,0.9433093,2960.6,2959.8,0.16914]
[1769198982767,0.00506714,2960.7,2959.8,0.16914]
[1769198983070,0.94334997,2960.6,2959.8,0.16914]
[1769198983270,0.00506714,2960.7,2959.8,0.16914]
[1769198983470,0.9433094,2960.6,2959.1,0.78396493]
[1769198983773,0.00506714,2960.7,2960.2,0.16911]
[1769198984271,0.00506714,2960.7,2960.3,0.1691]
[1769198984664,0.00275597,2961.1,2960.4,0.1691]
[1769198985673,0.00275597,2961.1,2960.5,0.16909]
[1769198985870,0.00275597,2961.1,2960.6,0.16909]
[1769198986072,0.7652335,2961.7,2960.2,0.00506714]
[1769198986272,0.94320617,2961.6,2960.8,0.16908]
[1769198986474,0.94320617,2961.5,2960.8,0.16908]
[1769198986667,0.7652335,2961.7,2960.8,0.16908]
[1769198986867,1.7084295,2961.6,2960.2,0.00506714]
[1769198987069,0.7652335,2961.5,2960.2,0.00506714]
[1769198987371,0.7652335,2961.3,2960.2,0.17417714]
[1769198987578,0.94176162,2961.2,2960.2,0.17417714]
[1769198987775,0.94176162,2961.1,2960.2,0.17417714]
[1769198987967,0.94169972,2961.0,2959.2,0.78396493]
[1769198988163,0.00506714,2961.0,2959.9,0.16913]
[1769198988369,0.00506714,2961.0,2960.0,0.16912]
[1769198988569,0.00506714,2961.0,2960.1,0.16912]
[1769198988967,0.77030064,2961.0,2959.2,0.78396493]
[1769198989173,0.94162012,2960.9,2959.8,0.16914]
[1769198989372,0.77030064,2961.0,2959.9,0.16913]
[1769198989568,0.00267987,2961.5,2959.0,3.02009602]
[1769198989771,0.00267987,2961.5,2961.0,0.16907]
[1769198990068,0.7652335,2962.2,2961.3,0.16905]
[1769198991169,0.76869522,2962.2,2961.3,0.16905]
[1769198994082,0.76869522,2962.2,2961.0,0.00344479]
[1769198995673,0.76869522,2962.2,2961.0,0.17251479]
[1769198997778,0.76869522,2962.2,2960.1,0.00506714]
[1769198997985,0.76869522,2962.2,2960.4,0.1691]
[1769198998185,0.7652335,2962.0,2960.4,0.1691]
[1769198998683,0.7652335,2961.8,2960.4,0.1691]
[1769198998881,0.7652335,2961.6,2960.1,0.00506714]
[1769198999074,0.33189676,2961.7,2960.1,0.00506714]
[1769198999075,0.7652335,2961.4,2960.1,0.00506714]
[1769198999682,44.181,2961.7,2960.1,0.00506714]
[1769198999683,0.7652335,2961.2,2960.1,0.00506714]
[1769198999885,0.7652335,2961.2,2960.1,0.00766395]
[1769199000481,44.181,2961.7,2960.1,0.00766395]
[1769199000482,41.5652335,2961.7,2960.1,0.00766395]
[1769199000682,0.7652335,2961.7,2960.1,0.79162888]
[1769199000882,0.7652335,2961.7,2960.6,0.16909]
[1769199001688,40.80346172,2962.2,2960.1,0.79162888]
[1769199001689,0.76869522,2962.2,2960.7,0.16908]
[1769199001889,1.26729401,2962.1,2960.7,0.16908]
[1769199002189,0.76869522,2962.2,2960.8,0.16908]
[1769199002389,1.26713564,2962.1,2960.8,0.16908]
[1769199002589,0.76869522,2962.2,2960.8,0.16908]
[1769199002785,2.08398768,2962.1,2960.8,0.16908]
[1769199002990,0.81651617,2962.1,2960.8,0.16908]
[1769199003191,0.93554809,2962.0,2960.8,0.16908]
[1769199003489,0.81651617,2962.1,2960.8,0.16908]
[1769199003790,0.93531585,2962.0,2960.8,0.16908]
[1769199003990,0.81651617,2962.1,2960.8,0.16908]
[1769199004191,0.93546933,2962.0,2960.8,0.16908]
[1769199004386,0.81651617,2962.1,2960.8,0.16908]
[1769199004586,0.93525634,2962.0,2960.8,0.16908]
[1769199004792,0.81651617,2962.1,2960.8,0.16908]
[1769199005092,0.00346172,2962.2,2960.3,0.16911]
[1769199005093,0.81651617,2961.9,2960.3,0.16911]
[1769199005294,0.81651617,2961.7,2960.3,0.16911]
[1769199005589,1.26720614,2961.8,2960.3,0.16911]
[1769199005590,0.81651617,2961.5,2960.3,0.16911]
[1769199008185,0.81738867,2961.3,2960.1,0.00766395]
[1769199009099,0.81738867,2961.3,2960.1,0.17678395]
[1769199010387,0.81738867,2961.3,2960.3,0.16911]
[1769199011689,0.82085039,2962.2,2960.7,0.16908]
[1769199011989,1.26978617,2962.1,2960.6,0.83534432]
[1769199012192,0.00346172,2962.2,2961.2,0.16905]
[1769199014495,0.81738867,2962.0,2960.7,0.16908]
[1769199014692,0.81738867,2961.8,2960.1,0.17678395]
[1769199014894,0.81738867,2961.6,2960.1,0.17678395]
[1769199015092,0.81738867,2961.4,2960.1,0.17678395]
[1769199015296,0.81738867,2961.2,2960.1,0.00766395]
[1769199015500,0.93645912,2961.1,2960.1,0.00766395]
[1769199015688,0.81738867,2961.2,2960.1,0.00766395]
[1769199015891,1.2693462,2961.1,2960.1,0.00766395]
[1769199016092,0.81738867,2961.2,2960.1,0.00766395]
[1769199016387,1.26928022,2961.1,2960.1,0.00766395]
[1769199016596,0.81738867,2961.2,2960.1,0.00766395]
[1769199016799,1.26917126,2961.1,2960.1,0.00766395]
[1769199017094,0.81738867,2961.2,2960.1,0.00766395]
[1769199017295,0.33262982,2961.1,2960.1,0.00766395]
[1769199017600,0.81738867,2961.2,2960.1,0.00766395]
[1769199017793,0.81738867,2961.0,2959.2,0.16917]
[1769199018000,3.381,2961.5,2958.5,4.02465034]
[1769199018001,0.98646867,2960.8,2958.5,4.02465034]
[1769199018193,0.81738867,2960.6,2958.8,0.16919]
[1769199018493,1.25652336,2960.7,2958.8,0.16919]
[1769199018494,0.81738867,2960.4,2958.8,0.16919]
[1769199018795,2.07289301,2960.3,2958.8,0.17241266]
[1769199019000,0.81738867,2960.3,2958.8,0.17241266]
[1769199019694,40.8,2960.7,2959.2,0.16917]
[1769199020095,1.25433316,2960.6,2959.2,0.16917]
[1769199020295,40.8,2960.7,2959.2,0.16917]
[1769199020490,40.8,2960.7,2958.8,0.83856698]
[1769199020692,40.8,2960.7,2959.6,0.16915]
[1769199020898,0.00506714,2960.9,2959.7,0.16914]
[1769199021095,0.00506714,2960.9,2959.2,0.83534432]
[1769199021304,0.00506714,2960.9,2959.4,0.83534432]
[1769199022395,0.81738867,2961.7,2960.4,0.1691]
[1769199022704,0.82085039,2962.2,2960.7,0.16908]
[1769199022899,1.25489354,2962.1,2960.8,0.16908]
[1769199023101,0.00346172,2962.2,2960.8,0.16908]
[1769199024001,0.00346172,2962.2,2960.9,0.16907]
[1769199024202,0.00346172,2962.2,2961.2,0.16906]
[1769199025304,0.00346172,2962.2,2961.4,0.00506714]
[1769199025598,0.82085039,2962.2,2961.4,0.00506714]
[1769199026302,0.00346172,2962.2,2961.4,0.00506714]
[1769199027700,0.00346172,2962.2,2961.2,0.16906]
[1769199028001,0.82245581,2962.1,2960.9,0.00381667]
[1769199029698,7.95845581,2962.1,2960.9,0.00381667]
[1769199029899,7.14106714,2962.1,2960.9,0.00381667]
[1769199030102,0.00506714,2962.1,2961.1,0.16906]
[1769199031696,0.82245581,2962.1,2960.9,0.00381667]
[1769199032101,1.82532735,2962.0,2960.9,0.00381667]
[1769199032305,0.90281974,2962.0,2960.9,0.00381667]
[1769199035602,0.92248105,2961.9,2960.1,0.16912]
[1769199035807,0.90281974,2961.8,2960.1,0.16912]
[1769199036403,0.90281974,2961.8,2960.2,0.16911]
[1769199036605,0.90281974,2961.8,2960.2,0.17201543]
[1769199038616,0.90281974,2961.4,2959.6,0.16915]
[1769199038821,0.90281974,2961.2,2959.6,0.16915]
[1769199039206,0.90281974,2961.2,2958.9,1.05097047]
[1769199039415,0.90281974,2960.8,2958.9,1.05097047]
[1769199039612,0.90281974,2960.6,2958.9,0.17181771]
[1769199040920,0.90281974,2960.6,2958.9,0.88440818]
[1769199041115,0.90281974,2960.6,2959.3,0.16916]
[1769199041314,0.90281974,2960.6,2959.4,0.16916]
[1769199041517,0.00506714,2960.7,2959.4,0.16916]
[1769199042916,0.00506714,2960.7,2959.6,0.16915]
[1769199045425,0.00506714,2960.7,2959.8,0.16913]
[1769199046322,0.00506714,2960.7,2959.9,0.16913]
[1769199047015,0.16903,2961.8,2960.0,0.88684761]
[1769199047219,8.40267535,2961.7,2960.0,0.88684761]
[1769199047418,1.25667535,2961.6,2960.0,0.88684761]
[1769199047614,47.946,2961.7,2960.0,0.88684761]
[1769199047615,1.25667535,2961.5,2960.0,0.88684761]
[1769199047827,0.92462508,2961.4,2960.1,0.16911]
[1769199048027,0.90281974,2961.5,2960.1,0.16911]
[1769199048228,7.32403,2961.8,2960.1,1.05089047]
[1769199048433,1.25608368,2961.7,2960.2,0.16911]
[1769199048627,0.92422012,2961.6,2960.1,0.88178047]
[1769199048937,7.16,2961.9,2960.4,0.1691]
[1769199049135,1.25599631,2961.8,2960.4,0.1691]
[1769199049433,7.16,2961.9,2960.4,0.1691]
[1769199049434,47.96,2961.9,2960.4,0.1691]
[1769199049634,1.25636379,2961.8,2960.4,0.1691]
[1769199049830,47.96,2961.9,2960.4,0.1691]
[1769199050032,1.25633748,2961.8,2960.4,0.1691]
[1769199050233,47.96,2961.9,2960.4,0.1691]
[1769199050433,1.25675746,2961.8,2960.4,0.1691]
[1769199050634,47.96,2961.9,2960.4,0.1691]
[1769199050930,1.25675069,2961.8,2960.4,0.1691]
[1769199051137,47.96,2961.9,2960.4,0.1691]
[1769199051330,0.92478351,2961.8,2960.4,0.1691]
[1769199051536,7.16,2961.9,2960.4,0.1691]
[1769199051732,0.92480363,2961.8,2960.4,0.88178047]
[1769199051935,3.99746172,2962.2,2960.7,0.16908]
[1769199052139,1.25712352,2962.1,2960.7,0.16908]
[1769199052335,3.99746172,2962.2,2960.7,0.16908]
[1769199052536,1.25711766,2962.1,2960.7,0.16908]
[1769199052832,0.00346172,2962.2,2960.7,1.05086047]
[1769199053040,0.92500803,2962.1,2960.7,1.05086047]
[1769199053232,0.00346172,2962.2,2960.7,1.05086047]
[1769199053540,0.92502779,2962.1,2960.7,1.05086047]
[1769199053737,0.00346172,2962.2,2960.7,1.05086047]
[1769199054039,0.92502969,2962.1,2960.8,0.16908]
[1769199054240,0.00346172,2962.2,2960.8,0.16908]
[1769199054442,0.92521886,2962.1,2960.8,0.16908]
[1769199054639,0.00346172,2962.2,2960.8,0.16908]
[1769199054841,0.92522096,2962.1,2960.8,0.16908]
[1769199055139,40.80346172,2962.2,2960.8,0.16908]
[1769199055340,0.92522009,2962.1,2960.8,0.16908]
[1769199055538,40.80346172,2962.2,2960.8,0.16908]
[1769199055839,0.92537684,2962.1,2960.8,0.16908]
[1769199056040,40.80346172,2962.2,2960.8,0.16908]
[1769199056234,1.25764316,2962.1,2960.8,0.16908]
[1769199056435,40.80346172,2962.2,2960.8,0.16908]
[1769199056637,1.25777728,2962.1,2960.8,0.16908]
[1769199056836,40.80346172,2962.2,2960.8,0.16908]
[1769199057038,1.25777708,2962.1,2960.8,0.16908]
[1769199057336,40.80346172,2962.2,2960.8,0.16908]
[1769199057537,1.25797452,2962.1,2960.8,0.16908]
[1769199057732,40.80346172,2962.2,2960.8,0.16908]
[1769199057936,1.2578897,2962.1,2960.8,0.16908]
[1769199058241,41.70628146,2962.2,2960.4,0.1691]
[1769199058242,0.90281974,2961.9,2960.4,0.1691]
[1769199058839,0.90281974,2961.9,2960.5,0.1691]
[1769199059141,40.97246172,2962.2,2960.2,0.88178047]
[1769199059443,1.25777009,2962.1,2960.7,0.16908]
[1769199059643,1.25782821,2962.0,2960.7,0.16908]
[1769199059844,7.234,2962.1,2960.8,0.16908]
[1769199060045,0.92573009,2962.0,2960.8,0.16908]
[1769199060243,7.234,2962.1,2960.8,0.16908]
[1769199060437,1.25820812,2962.0,2960.8,0.16908]
[1769199060644,7.234,2962.1,2960.8,0.16908]
[1769199060944,1.2582114,2962.0,2960.8,0.16908]
[1769199061142,7.234,2962.1,2960.8,0.16908]
[1769199061342,0.92584731,2962.0,2960.8,0.16908]
[1769199061543,7.234,2962.1,2960.8,0.16908]
[1769199061749,0.9259102,2962.0,2960.8,0.16908]
[1769199061941,7.234,2962.1,2960.8,0.16908]
[1769199062144,0.92578464,2962.0,2960.8,0.16908]
[1769199062343,7.234,2962.1,2960.8,0.16908]
[1769199062642,0.92556836,2962.0,2960.8,0.16908]
[1769199062843,7.234,2962.1,2960.8,0.16908]
[1769199063034,0.92561557,2962.0,2960.8,0.16908]
[1769199063238,7.234,2962.1,2960.8,0.16908]
[1769199063438,0.92556978,2962.0,2960.8,0.16908]
[1769199063638,7.234,2962.1,2960.8,0.16908]
[1769199063946,1.2579662,2962.0,2960.8,0.16908]
[1769199064149,8.20289508,2962.1,2960.8,0.16908]
[1769199064336,1.13791508,2961.9,2960.3,0.16911]
[1769199064541,0.96889508,2961.7,2960.3,0.16911]
[1769199064747,0.96889508,2961.5,2960.3,0.16911]
[1769199064941,0.96889508,2961.5,2960.0,0.00506714]
[1769199066144,0.96889508,2961.1,2959.3,0.16916]
[1769199066355,1.13797508,2960.9,2959.1,0.16918]
[1769199066542,0.96889508,2960.7,2959.1,0.16918]
[1769199066845,1.2572833,2960.6,2959.1,0.16918]
[1769199067047,0.92522025,2960.5,2959.1,0.16918]
[1769199067241,0.96889508,2960.7,2959.1,0.16918]
[1769199067441,1.25656553,2960.6,2959.1,0.16918]
[1769199067645,0.96889508,2960.7,2959.1,0.16918]
[1769199067838,0.96889508,2960.7,2958.8,0.94770231]
[1769199067839,1.25659121,2960.6,2958.9,1.02271646]
[1769199068041,7.281,2960.6,2959.3,0.16916]
[1769199068843,40.8,2960.9,2959.3,0.16916]
[1769199069042,8.21562116,2960.8,2959.3,0.16916]
[1769199069339,7.291,2960.8,2959.3,0.16916]
[1769199069546,1.03049104,2960.7,2958.9,0.00262771]
[1769199069744,7.291,2960.8,2958.9,0.00262771]
[1769199069745,1.03049104,2960.5,2958.9,0.00262771]
[1769199070043,1.03049104,2960.1,2958.9,0.00262771]
[1769199070245,1.03049104,2959.9,2958.2,1.02008875]
[1769199070446,1.03049104,2959.9,2958.5,0.16921]
[1769199070647,1.03049104,2959.9,2958.7,0.1692]
[1769199071247,0.00506714,2959.6,2958.7,0.00354592]
[1769199073855,1.03555818,2959.6,2957.9,0.16924]
[1769199074147,1.03555818,2959.6,2958.0,0.16924]
[1769199074852,1.03555818,2959.6,2958.0,0.17286726]
[1769199075650,1.03555818,2959.6,2958.1,0.16923]
[1769199076558,0.00506714,2959.6,2958.0,1.02371601]
[1769199077252,0.00506714,2959.6,2958.8,0.16919]
[1769199079055,0.00506714,2959.6,2958.0,0.00362726]
[1769199079056,1.03555818,2959.6,2958.0,0.00362726]
[1769199079357,1.03555818,2959.6,2958.4,0.16921]
[1769199079747,1.03555818,2959.6,2958.0,0.00362726]
[1769199079953,1.03555818,2959.6,2958.0,0.17286726]
[1769199080153,1.03049104,2959.5,2958.0,0.00362726]
[1769199080553,1.19964104,2959.5,2958.0,0.00362726]
[1769199081346,40.8,2959.4,2958.0,0.00362726]
[1769199081960,0.16915,2959.5,2958.0,0.00362726]
[1769199082256,0.00506714,2959.6,2958.0,1.19295601]
[1769199082459,40.8,2959.5,2958.0,1.02371601]
[1769199082655,40.8,2959.5,2958.3,0.16922]
[1769199082958,1.03049104,2959.4,2958.0,0.00362726]
[1769199083149,40.8,2959.5,2958.1,0.16923]
[1769199083347,0.00506714,2959.6,2958.2,0.16923]
[1769199084260,0.00506714,2959.6,2958.4,0.16921]
[1769199084459,0.00506714,2959.6,2958.7,0.1692]
[1769199084856,0.00506714,2959.6,2958.2,1.02008875]
[1769199085056,0.00506714,2959.6,2959.0,0.16918]
[1769199085260,0.00433799,2960.1,2959.3,0.16916]
[1769199088865,0.00433799,2960.1,2959.3,1.18924875]
[1769199089059,1.03049104,2960.9,2959.3,1.18924875]
[1769199089264,1.03049104,2960.7,2958.8,1.18927875]
[1769199089664,1.19958104,2960.7,2958.8,1.18927875]
[1769199090060,0.92086272,2960.6,2958.8,1.18927875]
[1769199090264,1.03049104,2960.5,2958.8,0.16919]
[1769199091164,1.03049104,2960.3,2958.8,0.16919]
[1769199091366,1.03049104,2959.9,2958.6,0.00506714]
[1769199091565,8.38849104,2959.9,2958.6,0.00506714]
[1769199092559,1.05604754,2960.4,2958.6,1.03208856]
[1769199092765,0.92267486,2960.3,2958.8,1.19621142]
[1769199093066,1.05604754,2960.4,2958.8,1.19621142]
[1769199093265,1.25486419,2960.3,2958.8,1.19621142]
[1769199093465,0.92317977,2960.2,2958.8,1.02702142]
[1769199093662,7.356,2960.5,2958.8,1.02702142]
[1769199093663,7.356,2960.5,2959.1,0.16918]
[1769199093969,0.9242756,2960.4,2959.2,0.16917]
[1769199094162,0.9242756,2960.4,2958.6,0.00506714]
[1769199094163,0.00242316,2960.7,2959.3,0.16916]
[1769199094366,1.25755321,2960.6,2959.3,0.16916]
[1769199094565,0.92537329,2960.5,2959.3,0.16916]
[1769199094767,0.00242316,2960.7,2959.3,0.16916]
[1769199094972,1.25830499,2960.6,2959.3,0.16916]
[1769199095265,1.2585145,2960.5,2959.3,0.16916]
[1769199095463,2.31456204,2960.4,2958.7,0.1692]
[1769199095663,2.31456204,2960.3,2958.7,0.1692]
[1769199095858,0.92592477,2960.2,2958.7,0.1692]
[1769199096978,0.33269591,2960.1,2958.7,0.1692]
[1769199097274,1.98197231,2960.0,2958.7,0.1692]
[1769199097577,1.98197231,2959.9,2958.6,0.00506714]
[1769199097778,1.25948656,2959.8,2958.6,0.00506714]
[1769199097973,0.92680473,2959.7,2958.6,0.00506714]
[1769199098166,1.05604754,2959.9,2958.6,0.00506714]
[1769199098369,1.25968095,2959.8,2958.6,0.00506714]
[1769199098673,1.05604754,2959.6,2958.6,0.00506714]
[1769199099180,8.60117754,2960.0,2958.6,0.00506714]
[1769199099476,1.2598727,2959.9,2958.6,0.00506714]
[1769199099678,1.2598727,2959.8,2958.7,0.1692]
[1769199099976,14.85504754,2960.5,2958.9,0.16919]
[1769199100179,1.26007889,2960.4,2959.0,0.16918]
[1769199100370,0.00242316,2960.7,2959.3,0.16916]